fUST/lending_fUST_20250901
["ID","MTS","AMOUNT","RATE_DAILY","PERIOD"]
[382554325,1756666242389,-480.0,0.00016697,2]
[382554327,1756666242398,-480.0,0.00016697,2]
[382554329,1756666242408,-833.43,0.00016697,2]
[382554331,1756666242417,-480.0,0.00016697,2]
[382554333,1756666242427,-480.0,0.00016697,2]
[382554335,1756666242436,-480.0,0.00016697,2]
[382554337,1756666242446,-480.0,0.00016697,2]
[382554339,1756666242456,-1173.67,0.00016697,2]
[382554341,1756666242466,-480.0,0.00016697,2]
[382554343,1756666242476,-480.0,0.00016697,2]
[382554345,1756666242485,-480.0,0.00016697,2]
[382554347,1756666242494,-594.94,0.00016697,2]
[382554349,1756666242503,-480.0,0.00016697,2]
[382554351,1756666242514,-480.0,0.00016697,2]
[382554353,1756666242523,-585.18,0.00016697,2]
[382554355,1756666242533,-1175.72,0.00016697,2]
[382554357,1756666242542,-491.59,0.00016697,2]
[382554359,1756666242552,-480.0,0.00016697,2]
[382554361,1756666242562,-1136.23,0.00016697,2]
[382554363,1756666242571,-480.0,0.00016697,2]
[382554365,1756666242580,-480.0,0.00016697,2]
[382554367,1756666242589,-588.77,0.00016697,2]
[382554369,1756666242598,-555.64,0.00016697,2]
[382554371,1756666242607,-492.7,0.00016697,2]
[382554373,1756666242616,-480.0,0.00016697,2]
[382554375,1756666242626,-1081.02,0.00016697,2]
[382554377,1756666242635,-480.0,0.00016697,2]
[382554379,1756666242644,-480.0,0.00016697,2]
[382554381,1756666242653,-480.0,0.00016697,2]
[382554383,1756666242662,-480.0,0.00016697,2]
[382554385,1756666242671,-480.0,0.00016697,2]
[382554386,1756666242680,-480.0,0.00016697,2]
[382554389,1756666242690,-480.0,0.00016697,2]
[382554391,1756666242699,-480.0,0.00016697,2]
[382554395,1756666242709,-480.0,0.00016697,2]
[382554397,1756666242718,-480.0,0.00016697,2]
[382554398,1756666242727,-480.0,0.00016697,2]
[382554401,1756666242737,-481.87,0.00016697,2]
[382554402,1756666242747,-480.0,0.00016697,2]
[382554405,1756666242757,-949.28,0.00016697,2]
[382554407,1756666242767,-619.85714217,0.00016697,2]
[382554409,1756666242777,-480.0,0.00016697,2]
[382554411,1756666242787,-480.0,0.00016697,2]
[382554414,1756666242797,-910.33,0.00016697,2]
[382554415,1756666242807,-480.0,0.00016697,2]
[382554417,1756666242817,-480.0,0.00016697,2]
[382554419,1756666242826,-481.07907518,0.00016697,2]
[382554421,1756666242836,-480.0,0.00016697,2]
[382554423,1756666242846,-480.0,0.00016697,2]
[382554425,1756666242857,-480.0,0.00016697,2]
[382554427,1756666242866,-480.0,0.00016697,2]
[382554429,1756666242876,-720.83,0.00016697,2]
[382554431,1756666242885,-480.0,0.00016697,2]
[382554433,1756666242895,-934.55,0.00016697,2]
[382554436,1756666242906,-1040.38,0.00016697,2]
[382554439,1756666242915,-480.0,0.00016697,2]
[382554443,1756666242924,-480.0,0.00016697,2]
[382554445,1756666242934,-480.0,0.00016697,2]
[382554447,1756666242943,-480.0,0.00016697,2]
[382554449,1756666242952,-655.44,0.00016697,2]
[382554451,1756666242962,-480.0,0.00016697,2]
[382554453,1756666242971,-480.0,0.00016697,2]
[382554455,1756666242980,-480.0,0.00016697,2]
[382554457,1756666242990,-625.77,0.00016697,2]
[382554459,1756666242999,-480.0,0.00016697,2]
[382554461,1756666243008,-2856.77,0.00016697,2]
[382554463,1756666243018,-1071.7,0.00016697,2]
[382554465,1756666243028,-480.0,0.00016697,2]
[382554467,1756666243037,-480.0,0.00016697,2]
[382554469,1756666243047,-971.21,0.00016697,2]
[382554471,1756666243057,-900.97,0.00016697,2]
[382554473,1756666243066,-480.0,0.00016697,2]
[382554475,1756666243076,-455.96158309,0.00016697,2]
[382554477,1756666243086,-849.34,0.00016697,2]
[382554479,1756666243095,-1262.34,0.00016697,2]
[382554481,1756666243104,-480.0,0.00016697,2]
[382554483,1756666243114,-480.0,0.00016697,2]
[382554485,1756666243123,-480.0,0.00016697,2]
[382554487,1756666243133,-480.0,0.00016697,2]
[382554489,1756666243143,-480.0,0.00016697,2]
[382554491,1756666243152,-1286.76,0.00016697,2]
[382554493,1756666243162,-714.23,0.00016697,2]
[382554495,1756666243171,-480.0,0.00016697,2]
[382554497,1756666243180,-480.0,0.00016697,2]
[382554499,1756666243189,-480.0,0.00016697,2]
[382554501,1756666243199,-480.0,0.00016697,2]
[382554503,1756666243209,-584.28,0.00016697,2]
[382554505,1756666243219,-480.0,0.00016697,2]
[382554507,1756666243227,-489.6535696,0.00016697,2]
[382554509,1756666243237,-1167.02,0.00016697,2]
[382554511,1756666243247,-480.0,0.00016697,2]
[382554513,1756666243257,-1007.02,0.00016697,2]
[382554516,1756666243265,-900.71,0.00016697,2]
[382554519,1756666243275,-480.0,0.00016697,2]
[382554520,1756666243284,-480.0,0.00016697,2]
[382554524,1756666243293,-481.39767338,0.00016697,2]
[382554525,1756666243303,-1654.98,0.00016697,2]
[382554528,1756666243313,-613.84,0.00016697,2]
[382554529,1756666243323,-480.0,0.00016697,2]
[382554531,1756666243332,-480.00000001,0.00016697,2]
[382554533,1756666243342,-480.0,0.00016697,2]
[382554535,1756666243352,-480.0,0.00016697,2]
[382554537,1756666243362,-794.31,0.00016697,2]
[382554539,1756666243371,-2126.74,0.00016697,2]
[382554541,1756666243380,-480.0,0.00016697,2]
[382554543,1756666243389,-538.74,0.00016697,2]
[382554545,1756666243398,-1000.0,0.00016697,2]
[382554547,1756666243407,-510.7510522,0.00016697,2]
[382554549,1756666243418,-480.0,0.00016697,2]
[382554551,1756666243427,-279.29495814,0.00016697,2]
[382554555,1756666243437,-480.0,0.00016697,2]
[382554557,1756666243446,-535.58,0.00016697,2]
[382554559,1756666243455,-480.0,0.00016697,2]
[382554561,1756666243464,-1731.2,0.00016697,2]
[382554563,1756666243473,-1172.05,0.00016697,2]
[382554565,1756666243482,-1082.72,0.00016697,2]
[382554567,1756666243491,-480.0,0.00016697,2]
[382554569,1756666243501,-480.0,0.00016697,2]
[382554571,1756666243511,-480.0,0.00016697,2]
[382554573,1756666243521,-480.0,0.00016697,2]
[382554575,1756666243535,-480.0,0.00016697,2]
[382554577,1756666243544,-650.91,0.00016697,2]
[382554580,1756666243555,-480.0,0.00016697,2]
[382554582,1756666243565,-480.0,0.00016697,2]
[382554584,1756666243575,-480.0,0.00016697,2]
[382554587,1756666243584,-480.0,0.00016697,2]
[382554590,1756666243594,-656.44,0.00016697,2]
[382554593,1756666243608,-508.98,0.00016697,2]
[382554596,1756666243618,-560.88,0.00016697,2]
[382554600,1756666243628,-480.0,0.00016697,2]
[382554604,1756666243637,-622.1,0.00016697,2]
[382554606,1756666243647,-663.15,0.00016697,2]
[382554610,1756666243656,-480.0,0.00016697,2]
[382554612,1756666243666,-480.0,0.00016697,2]
[382554615,1756666243675,-480.0,0.00016697,2]
[382554617,1756666243684,-480.0,0.00016697,2]
[382554619,1756666243694,-480.0,0.00016697,2]
[382554621,1756666243703,-1346.99,0.00016697,2]
[382554622,1756666243712,-480.0,0.00016697,2]
[382554624,1756666243721,-535.64,0.00016697,2]
[382554626,1756666243731,-1348.93,0.00016697,2]
[382554628,1756666243740,-356.36837268,0.00016697,2]
[382554630,1756666243749,-480.0,0.00016697,2]
[382554632,1756666243759,-480.0,0.00016697,2]
[382554634,1756666243769,-480.0,0.00016697,2]
[382554636,1756666243778,-526.08976141,0.00016697,2]
[382554638,1756666243787,-480.0,0.00016697,2]
[382554640,1756666243797,-480.0,0.00016697,2]
[382554642,1756666243806,-480.0,0.00016697,2]
[382554644,1756666243815,-649.4,0.00016697,2]
[382554646,1756666243824,-480.0,0.00016697,2]
[382554648,1756666243833,-480.0,0.00016697,2]
[382554650,1756666243842,-540.89,0.00016697,2]
[382554652,1756666243851,-480.0,0.00016697,2]
[382554654,1756666243860,-569.15,0.00016697,2]
[382554656,1756666243870,-480.0,0.00016697,2]
[382554657,1756666243879,-610.75,0.00016697,2]
[382554659,1756666243889,-480.0,0.00016697,2]
[382554661,1756666243898,-480.0,0.00016697,2]
[382554663,1756666243907,-480.0,0.00016697,2]
[382554665,1756666243916,-838.42,0.00016697,2]
[382554667,1756666243926,-480.0,0.00016697,2]
[382554669,1756666243935,-1261.57,0.00016697,2]
[382554671,1756666243945,-1045.13,0.00016697,2]
[382554673,1756666243954,-480.0,0.00016697,2]
[382554675,1756666243964,-543.6,0.00016697,2]
[382554677,1756666243974,-500.0,0.00016697,2]
[382554679,1756666243983,-480.0,0.00016697,2]
[382554681,1756666243992,-480.0,0.00016697,2]
[382554683,1756666244002,-480.0,0.00016697,2]
[382554685,1756666244012,-151.0,0.000167,2]
[382554687,1756666244023,-1737.0,0.00016709,2]
[382554689,1756666244032,-3951.0,0.00016786,2]
[382554691,1756666244041,-132.88473457,0.00016794,2]
[382554693,1756666244051,-482.59720954,0.00016796,2]
[382554695,1756666244060,-1000.0,0.00016796,2]
[382554697,1756666244069,-1000.0,0.00016796,2]
[382554699,1756666244078,-1000.0,0.00016796,2]
[382554700,1756666244088,-1000.0,0.00016796,2]
[382554702,1756666244097,-1000.0,0.00016796,2]
[382554704,1756666244107,-1000.0,0.00016796,2]
[382554706,1756666244116,-1000.0,0.00016796,2]
[382554708,1756666244125,-151.0,0.00016796,2]
[382554710,1756666244135,-151.0,0.00016796,2]
[382554712,1756666244144,-151.0,0.00016796,2]
[382554714,1756666244154,-151.0,0.00016796,2]
[382554716,1756666244164,-151.0,0.00016796,2]
[382554718,1756666244173,-151.0,0.00016796,2]
[382554720,1756666244185,-151.0,0.00016796,2]
[382554722,1756666244194,-151.0,0.00016796,2]
[382554724,1756666244204,-279.423575,0.00016796,2]
[382554726,1756666244213,-151.0,0.00016796,2]
[382554728,1756666244222,-152.953308,0.00016796,2]
[382554730,1756666244232,-152.953308,0.00016796,2]
[382554732,1756666244241,-152.953308,0.00016796,2]
[382554734,1756666244250,-152.953308,0.00016796,2]
[382554736,1756666244260,-172.580756,0.00016796,2]
[382554738,1756666244270,-172.580756,0.00016796,2]
[382554740,1756666244279,-172.580756,0.00016796,2]
[382554742,1756666244288,-172.580756,0.00016796,2]
[382554743,1756666244298,-500.0,0.00016796,2]
[382554746,1756666244308,-151.0,0.00016796,2]
[382554747,1756666244317,-151.0,0.00016796,2]
[382554749,1756666244327,-480.0,0.00016797,2]
[382554751,1756666244336,-480.0,0.00016797,2]
[382554753,1756666244345,-480.0,0.00016797,2]
[382554755,1756666244356,-652.18,0.00016797,2]
[382554757,1756666244365,-575.65,0.00016797,2]
[382554759,1756666244375,-480.0,0.00016797,2]
[382554761,1756666244384,-512.79,0.00016797,2]
[382554763,1756666244393,-480.0,0.00016797,2]
[382554765,1756666244402,-984.67,0.00016797,2]
[382554767,1756666244411,-480.0,0.00016797,2]
[382554769,1756666244421,-480.0,0.00016797,2]
[382554771,1756666244430,-480.0,0.00016797,2]
[382554772,1756666244440,-480.0,0.00016797,2]
[382554773,1756666244449,-480.0,0.00016797,2]
[382554774,1756666244459,-546.41,0.00016797,2]
[382554775,1756666244468,-151.0,0.00016797,2]
[382554776,1756666244477,-151.0,0.00016797,2]
[382554777,1756666244487,-282.621089,0.00016797,2]
[382554778,1756666244496,-151.0,0.00016797,2]
[382554779,1756666244511,-151.0,0.00016797,2]
[382554780,1756666244526,-151.0,0.00016797,2]
[382554781,1756666244536,-282.621089,0.00016797,2]
[382554782,1756666244545,-282.621089,0.00016797,2]
[382554783,1756666244555,-282.621089,0.00016797,2]
[382554784,1756666244564,-151.0,0.000168,2]
[382554785,1756666244573,-151.0,0.000168,2]
[382554787,1756666244583,-3490.0,0.00016825,2]
[382554789,1756666244593,-976.14046566,0.0001687,2]
[382554792,1756666244602,-1000.0,0.00016871,2]
[382554794,1756666244613,-1898.4312543,0.00016871,2]
[382554796,1756666244622,-1436.89527523,0.00016871,2]
[382554798,1756666244632,-4271.47032217,0.00016871,2]
[382554800,1756666244641,-7586.13129217,0.00016896,2]
[382554802,1756666244651,-151.0,0.000169,2]
[382554803,1756666244660,-151.0,0.000169,2]
[382554805,1756666244670,-500.0,0.00016935,2]
[382554807,1756666244680,-769.73,0.00016935,2]
[382554809,1756666244689,-480.0,0.00016944,2]
[382554811,1756666244698,-480.0,0.00016944,2]
[382554813,1756666244707,-1029.23,0.00016944,2]
[382554815,1756666244717,-480.0,0.00016944,2]
[382554818,1756666244727,-1236.91,0.00016944,2]
[382554820,1756666244736,-1386.55,0.00016944,2]
[382554821,1756666244745,-979.62,0.00016968,2]
[382554824,1756666244754,-480.0,0.00016968,2]
[382554825,1756666244764,-480.0,0.00016968,2]
[382554827,1756666244773,-480.0,0.00016968,2]
[382554829,1756666244782,-480.0,0.00016968,2]
[382554831,1756666244792,-480.0,0.00016968,2]
[382554834,1756666244803,-480.0,0.00016968,2]
[382554836,1756666244812,-480.0,0.00016968,2]
[382554838,1756666244821,-480.0,0.00016968,2]
[382554840,1756666244831,-631.34,0.00016968,2]
[382554842,1756666244841,-480.0,0.00016968,2]
[382554844,1756666244850,-480.0,0.00016968,2]
[382554846,1756666244860,-480.0,0.00016968,2]
[382554848,1756666244871,-480.0,0.00016968,2]
[382554850,1756666244880,-480.0,0.00016968,2]
[382554852,1756666244891,-480.0,0.00016968,2]
[382554854,1756666244902,-489.77,0.00016968,2]
[382554856,1756666244912,-529.29,0.00016968,2]
[382554858,1756666244926,-480.0,0.00016968,2]
[382554860,1756666244936,-480.0,0.00016968,2]
[382554862,1756666244945,-729.43,0.00016968,2]
[382554864,1756666244955,-480.0,0.00016968,2]
[382554866,1756666244964,-480.0,0.00016968,2]
[382554868,1756666244974,-480.0,0.00016968,2]
[382554870,1756666244983,-739.99,0.00016968,2]
[382554872,1756666244993,-480.0,0.00016968,2]
[382554874,1756666245003,-480.0,0.00016968,2]
[382554876,1756666245013,-480.0,0.00016968,2]
[382554878,1756666245023,-480.0,0.00016969,2]
[382554880,1756666245032,-480.0,0.00016969,2]
[382554882,1756666245041,-480.0,0.00016969,2]
[382554884,1756666245051,-1461.32,0.00016969,2]
[382554886,1756666245060,-810.48,0.00016969,2]
[382554888,1756666245070,-962.71,0.00016969,2]
[382554890,1756666245080,-480.0,0.00016969,2]
[382554892,1756666245089,-782.37,0.00016969,2]
[382554894,1756666245099,-480.0,0.00016969,2]
[382554896,1756666245108,-491.61,0.00016969,2]
[382554898,1756666245117,-480.0,0.00016969,2]
[382554900,1756666245127,-486.85,0.00016969,2]
[382554902,1756666245136,-603.14,0.00016969,2]
[382554904,1756666245146,-748.53,0.00016969,2]
[382554906,1756666245155,-480.0,0.00016969,2]
[382554908,1756666245165,-480.0,0.00016969,2]
[382554910,1756666245175,-818.99,0.00016969,2]
[382554912,1756666245184,-1024.68,0.00016969,2]
[382554914,1756666245193,-588.16,0.00016969,2]
[382554916,1756666245202,-480.0,0.00016969,2]
[382554918,1756666245211,-742.86,0.00016969,2]
[382554920,1756666245221,-501.17,0.00016969,2]
[382554922,1756666245230,-724.98,0.00016969,2]
[382554924,1756666245239,-1030.41,0.00016969,2]
[382554926,1756666245248,-1001.0,0.00016969,2]
[382554928,1756666245258,-480.0,0.00016969,2]
[382554930,1756666245267,-480.0,0.00016969,2]
[382554932,1756666245277,-480.0,0.00016969,2]
[382554934,1756666245286,-480.0,0.00016969,2]
[382554936,1756666245295,-685.34,0.00016969,2]
[382554938,1756666245305,-493.84,0.00016969,2]
[382554940,1756666245315,-480.0,0.00016969,2]
[382554942,1756666245328,-505.24,0.00016969,2]
[382554944,1756666245338,-497.43,0.00016969,2]
[382554946,1756666245347,-994.57,0.00016969,2]
[382554948,1756666245357,-480.0,0.00016969,2]
[382554950,1756666245366,-480.0,0.00016969,2]
[382554952,1756666245375,-1779.89,0.00016969,2]
[382554954,1756666245385,-480.0,0.00016969,2]
[382554956,1756666245394,-836.52,0.00016969,2]
[382554958,1756666245403,-604.07,0.00016969,2]
[382554960,1756666245412,-869.39,0.00016969,2]
[382554962,1756666245422,-480.0,0.00016969,2]
[382554964,1756666245431,-498.24,0.00016969,2]
[382554966,1756666245440,-480.0,0.00016969,2]
[382554967,1756666245449,-1012.37,0.00016969,2]
[382554969,1756666245459,-480.0,0.00016969,2]
[382554971,1756666245468,-1344.9,0.00016969,2]
[382554973,1756666245478,-1243.82,0.00016969,2]
[382554975,1756666245487,-985.25,0.00016969,2]
[382554977,1756666245497,-480.0,0.00016969,2]
[382554979,1756666245506,-480.0,0.00016969,2]
[382554981,1756666245516,-480.0,0.00016969,2]
[382554983,1756666245530,-587.47,0.00016969,2]
[382554985,1756666245540,-1022.72,0.00016969,2]
[382554987,1756666245550,-543.35,0.00016969,2]
[382554989,1756666245559,-480.0,0.00016969,2]
[382554991,1756666245570,-2062.51,0.00016969,2]
[382554993,1756666245581,-797.04,0.00016969,2]
[382554995,1756666245591,-480.0,0.00016969,2]
[382554997,1756666245600,-773.81,0.00016969,2]
[382554999,1756666245610,-1010.56,0.00016969,2]
[382555002,1756666245620,-480.0,0.00016969,2]
[382555004,1756666245630,-1061.73,0.00016969,2]
[382555006,1756666245639,-766.62,0.00016969,2]
[382555008,1756666245649,-1897.83,0.00016969,2]
[382555010,1756666245658,-725.16,0.00016969,2]
[382555012,1756666245667,-588.99,0.00016969,2]
[382555013,1756666245677,-480.0,0.00016969,2]
[382555035,1756666245828,-480.0,0.00016969,2]
[382555037,1756666245860,-1173.59,0.00016969,2]
[382555039,1756666245869,-510.87,0.00016969,2]
[382555041,1756666245879,-480.0,0.00016969,2]
[382555043,1756666245889,-480.0,0.00016969,2]
[382555045,1756666245898,-618.82,0.00016969,2]
[382555047,1756666245908,-804.06,0.0001697,2]
[382555049,1756666245918,-3599.12,0.0001697,2]
[382555051,1756666245928,-6013.89,0.0001697,2]
[382555053,1756666245937,-1563.83,0.0001697,2]
[382555055,1756666245947,-480.0,0.0001697,2]
[382555057,1756666245957,-1261.56,0.0001697,2]
[382555059,1756666245966,-868.94,0.0001697,2]
[382555061,1756666245975,-4994.37,0.0001697,2]
[382555063,1756666245985,-5041.24,0.0001697,2]
[382555065,1756666245995,-480.0,0.0001697,2]
[382555068,1756666246005,-639.98,0.0001697,2]
[382555072,1756666246016,-480.0,0.0001697,2]
[382555076,1756666246026,-1098.49,0.0001697,2]
[382555080,1756666246036,-480.0,0.00016971,2]
[382555083,1756666246045,-480.0,0.00016971,2]
[382555086,1756666246055,-480.0,0.00016971,2]
[382555089,1756666246065,-480.0,0.00016971,2]
[382555092,1756666246075,-1029.14,0.00016971,2]
[382555094,1756666246084,-1040.21,0.00016971,2]
[382555096,1756666246094,-480.0,0.00016971,2]
[382555098,1756666246103,-480.0,0.00016971,2]
[382555100,1756666246113,-480.0,0.00016971,2]
[382555102,1756666246123,-480.0,0.00016971,2]
[382555104,1756666246132,-480.0,0.00016971,2]
[382555107,1756666246142,-480.0,0.00016971,2]
[382555109,1756666246152,-480.0,0.00016971,2]
[382555110,1756666246161,-480.0,0.00016971,2]
[382555112,1756666246171,-480.0,0.00016971,2]
[382555115,1756666246180,-480.0,0.00016971,2]
[382555117,1756666246192,-480.0,0.00016971,2]
[382555119,1756666246201,-480.0,0.00016971,2]
[382555121,1756666246210,-480.0,0.00016971,2]
[382555123,1756666246220,-773.18,0.00016971,2]
[382555125,1756666246229,-480.0,0.00016971,2]
[382555127,1756666246239,-480.0,0.00016971,2]
[382555129,1756666246249,-480.0,0.00016971,2]
[382555131,1756666246259,-480.0,0.00016971,2]
[382555134,1756666246269,-480.0,0.00016971,2]
[382555137,1756666246279,-480.0,0.00016971,2]
[382555139,1756666246289,-480.0,0.00016971,2]
[382555141,1756666246299,-480.0,0.00016971,2]
[382555143,1756666246309,-480.0,0.00016971,2]
[382555145,1756666246319,-480.0,0.00016971,2]
[382555147,1756666246329,-480.0,0.00016971,2]
[382555149,1756666246339,-480.0,0.00016971,2]
[382555151,1756666246349,-599.13,0.00016971,2]
[382555153,1756666246359,-480.0,0.00016971,2]
[382555155,1756666246369,-578.41,0.00016971,2]
[382555157,1756666246378,-480.0,0.00016971,2]
[382555159,1756666246388,-480.0,0.00016971,2]
[382555161,1756666246397,-480.0,0.00016971,2]
[382555163,1756666246407,-480.0,0.00016971,2]
[382555165,1756666246417,-480.0,0.00016971,2]
[382555167,1756666246426,-480.0,0.00016971,2]
[382555169,1756666246435,-480.0,0.00016971,2]
[382555171,1756666246444,-480.0,0.00016971,2]
[382555173,1756666246454,-480.0,0.00016971,2]
[382555175,1756666246464,-335.03468813,0.00016971,2]
[382555177,1756666246473,-257.29803267,0.00016971,2]
[382555179,1756666246482,-480.0,0.00016971,2]
[382555181,1756666246493,-416.95114487,0.00016971,2]
[382555183,1756666246503,-480.0,0.00016971,2]
[382555185,1756666246514,-480.0,0.00016971,2]
[382555187,1756666246523,-480.0,0.00016971,2]
[382555189,1756666246537,-834.99,0.00016971,2]
[382555191,1756666246547,-480.0,0.00016971,2]
[382555193,1756666246556,-480.0,0.00016971,2]
[382555195,1756666246565,-480.0,0.00016971,2]
[382555197,1756666246575,-480.0,0.00016971,2]
[382555199,1756666246585,-480.0,0.00016971,2]
[382555201,1756666246595,-1131.92,0.00016971,2]
[382555203,1756666246604,-480.0,0.00016971,2]
[382555205,1756666246613,-480.0,0.00016971,2]
[382555207,1756666246623,-500.0,0.00016971,2]
[382555209,1756666246632,-916.59,0.00016971,2]
[382555211,1756666246642,-480.0,0.00016971,2]
[382555213,1756666246652,-750.53,0.00016971,2]
[382555215,1756666246661,-333.83539052,0.00016971,2]
[382555217,1756666246671,-558.42,0.00016971,2]
[382555219,1756666246681,-480.0,0.00016971,2]
[382555221,1756666246690,-480.0,0.00016971,2]
[382555223,1756666246700,-480.0,0.00016971,2]
[382555225,1756666246710,-480.0,0.00016971,2]
[382555227,1756666246719,-776.49,0.00016971,2]
[382555229,1756666246729,-480.0,0.00016971,2]
[382555231,1756666246739,-480.0,0.00016971,2]
[382555233,1756666246748,-647.25,0.00016971,2]
[382555235,1756666246759,-480.0,0.00016971,2]
[382555238,1756666246769,-480.0,0.00016971,2]
[382555239,1756666246779,-480.0,0.00016971,2]
[382555242,1756666246789,-151.0,0.00016971,2]
[382555243,1756666246800,-151.0,0.00016971,2]
[382555245,1756666246810,-151.0,0.00016971,2]
[382555247,1756666246819,-506.84,0.00016971,2]
[382555250,1756666246828,-151.0,0.00016971,2]
[382555253,1756666246839,-480.0,0.00016971,2]
[382555256,1756666246849,-151.0,0.00016971,2]
[382555259,1756666246858,-480.0,0.00016971,2]
[382555262,1756666246867,-973.22,0.00016971,2]
[382555265,1756666246877,-480.0,0.00016971,2]
[382555268,1756666246887,-151.0,0.00016971,2]
[382555271,1756666246896,-1491.78,0.00016971,2]
[382555273,1756666246906,-480.0,0.00016971,2]
[382555275,1756666246915,-545.46,0.00016971,2]
[382555277,1756666246925,-151.0,0.00016971,2]
[382555279,1756666246935,-480.0,0.00016971,2]
[382555281,1756666246944,-480.0,0.00016971,2]
[382555283,1756666246955,-1238.5,0.00016971,2]
[382555285,1756666246964,-480.0,0.00016971,2]
[382555287,1756666246974,-480.0,0.00016971,2]
[382555289,1756666246983,-480.0,0.00016971,2]
[382555291,1756666246994,-480.0,0.00016971,2]
[382555294,1756666247004,-705.72,0.00016971,2]
[382555295,1756666247014,-1167.0,0.00016971,2]
[382555298,1756666247024,-480.0,0.00016971,2]
[382555300,1756666247034,-480.0,0.00016971,2]
[382555302,1756666247043,-480.0,0.00016971,2]
[382555304,1756666247054,-480.0,0.00016971,2]
[382555306,1756666247064,-967.2,0.00016971,2]
[382555307,1756666247073,-1108.12,0.00016971,2]
[382555309,1756666247083,-480.0,0.00016971,2]
[382555311,1756666247094,-480.0,0.00016971,2]
[382555313,1756666247105,-151.0,0.00016971,2]
[382555316,1756666247114,-151.0,0.00016971,2]
[382555317,1756666247124,-151.0,0.00016971,2]
[382555320,1756666247134,-151.0,0.00016971,2]
[382555322,1756666247143,-808.37,0.00016971,2]
[382555323,1756666247152,-480.0,0.00016971,2]
[382555326,1756666247162,-975.4,0.00016971,2]
[382555328,1756666247172,-151.0,0.00016971,2]
[382555330,1756666247182,-802.68,0.00016971,2]
[382555332,1756666247191,-480.0,0.00016971,2]
[382555334,1756666247200,-480.0,0.00016971,2]
[382555336,1756666247209,-151.0,0.00016971,2]
[382555337,1756666247219,-480.0,0.00016971,2]
[382555339,1756666247230,-833.43,0.00016971,2]
[382555341,1756666247240,-480.0,0.00016971,2]
[382555343,1756666247250,-480.0,0.00016971,2]
[382555345,1756666247260,-151.0,0.00016971,2]
[382555347,1756666247270,-151.0,0.00016971,2]
[382555349,1756666247279,-151.0,0.00016971,2]
[382555351,1756666247289,-480.0,0.00016971,2]
[382555353,1756666247298,-1173.67,0.00016971,2]
[382555355,1756666247308,-151.0,0.00016971,2]
[382555357,1756666247317,-480.0,0.00016971,2]
[382555359,1756666247326,-480.0,0.00016971,2]
[382555361,1756666247336,-480.0,0.00016971,2]
[382555363,1756666247345,-594.94,0.00016971,2]
[382555365,1756666247355,-480.0,0.00016971,2]
[382555367,1756666247364,-151.0,0.00016971,2]
[382555369,1756666247374,-151.0,0.00016971,2]